[Event "*** Titled Tuesday Blitz"]
[Site "Chess.com"]
[Date "2020.05.26"]
[Round "1"]
[White "RobertPrieb2007"]
[Black "Msb2"]
[Result "1-0"]
[WhiteElo "2443"]
[BlackElo "2869"]
[TimeControl "180+1"]
[EndTime "10:06:32 PDT"]
[Termination "RobertPrieb2007 won by resignation"]

1. d4 {[%clk 0:03:00.9]} 1... d5 {[%clk 0:02:59.9]} 2. c4 {[%clk 0:03:00.5]}
2... c6 {[%clk 0:02:59.8]} 3. Nf3 {[%clk 0:03:00.1]} 3... Nf6 {[%clk 0:02:59.6]}
4. Nc3 {[%clk 0:02:59.8]} 4... dxc4 {[%clk 0:02:59.9]} 5. a4 {[%clk 0:02:58.8]}
5... Bf5 {[%clk 0:03:00.4]} 6. e3 {[%clk 0:02:57.3]} 6... e6 {[%clk 0:03:00.6]}
7. Bxc4 {[%clk 0:02:55.6]} 7... Bb4 {[%clk 0:03:01.2]} 8. O-O {[%clk 0:02:52.3]}
8... O-O {[%clk 0:03:01.3]} 9. Qe2 {[%clk 0:02:48.4]} 9... Bg6 {[%clk
0:03:00.2]} 10. e4 {[%clk 0:02:44.9]} 10... Bxc3 {[%clk 0:03:00.2]} 11. bxc3
{[%clk 0:02:43.9]} 11... Nxe4 {[%clk 0:03:00.7]} 12. Ba3 {[%clk 0:02:33.5]}
12... Re8 {[%clk 0:02:57.6]} 13. Qb2 {[%clk 0:02:33.4]} 13... Qc7 {[%clk
0:02:47.8]} 14. Ne5 {[%clk 0:02:23.9]} 14... Nd7 {[%clk 0:02:46.8]} 15. f3
{[%clk 0:02:20.5]} 15... Nef6 {[%clk 0:02:34.5]} 16. Nxg6 {[%clk 0:02:16.9]}
16... hxg6 {[%clk 0:02:35.4]} 17. Rfb1 {[%clk 0:02:11.6]} 17... b6 {[%clk
0:02:31.1]} 18. Re1 {[%clk 0:02:11.1]} 18... c5 {[%clk 0:02:20.7]} 19. Bb5
{[%clk 0:02:08.4]} 19... a6 {[%clk 0:02:19]} 20. Bxd7 {[%clk 0:02:05.6]} 20...
Nxd7 {[%clk 0:02:19.9]} 21. Rab1 {[%clk 0:02:01.3]} 21... cxd4 {[%clk
0:02:16.3]} 22. cxd4 {[%clk 0:02:02.2]} 22... Qc6 {[%clk 0:02:16.7]} 23. Qb3
{[%clk 0:01:58.3]} 23... Rec8 {[%clk 0:02:11.5]} 24. Rbc1 {[%clk 0:01:58.2]}
24... Qb7 {[%clk 0:02:09.1]} 25. Rxe6 {[%clk 0:01:46.4]} 25... Rxc1+ {[%clk
0:01:33.3]} 26. Bxc1 {[%clk 0:01:47.3]} 26... Nc5 {[%clk 0:01:14.3]} 27. dxc5
{[%clk 0:01:43.2]} 27... fxe6 {[%clk 0:01:14.7]} 28. Qxe6+ {[%clk 0:01:39.5]}
28... Qf7 {[%clk 0:01:15.1]} 29. Qxf7+ {[%clk 0:01:38.6]} 29... Kxf7 {[%clk
0:01:16]} 30. cxb6 {[%clk 0:01:38.8]} 30... Rd8 {[%clk 0:00:52.2]} 31. Kf2
{[%clk 0:01:33.2]} 31... Rd4 {[%clk 0:00:49]} 32. Ba3 {[%clk 0:01:25.7]} 32...
Rd3 {[%clk 0:00:49.3]} 33. Bc5 {[%clk 0:01:21.7]} 33... a5 {[%clk 0:00:43.8]}
34. Ke2 {[%clk 0:01:17.3]} 34... Rc3 {[%clk 0:00:39.6]} 35. Bb4 {[%clk
0:01:01.9]} 35... Rb3 {[%clk 0:00:20]} 36. Bxa5 {[%clk 0:01:00.6]} 36... Ke6
{[%clk 0:00:20.5]} 37. Kd2 {[%clk 0:00:56.1]} 37... Kd5 {[%clk 0:00:19.3]} 38.
Kc2 {[%clk 0:00:55.6]} 38... Kc5 {[%clk 0:00:19.9]} 39. Kxb3 {[%clk 0:00:51.8]}
1-0

[Event "*** Titled Tuesday Blitz"]
[Site "Chess.com"]
[Date "2020.05.26"]
[Round "1"]
[White "Chessacademia"]
[Black "Lubov_Gordyk"]
[Result "0-1"]
[WhiteElo "2258"]
[BlackElo "2597"]
[TimeControl "180+1"]
[EndTime "10:06:36 PDT"]
[Termination "Lubov_Gordyk won by resignation"]

1. e4 {[%clk 0:03:00.4]} 1... g6 {[%clk 0:02:59.4]} 2. d4 {[%clk 0:02:59.8]}
2... Bg7 {[%clk 0:02:59]} 3. Nc3 {[%clk 0:03:00.3]} 3... d6 {[%clk 0:02:58.3]}
4. Be3 {[%clk 0:03:00.1]} 4... a6 {[%clk 0:02:57.8]} 5. a4 {[%clk 0:02:59.5]}
5... Nf6 {[%clk 0:02:56.4]} 6. f3 {[%clk 0:02:59.7]} 6... Nc6 {[%clk 0:02:52.4]}
7. Nge2 {[%clk 0:02:58]} 7... e5 {[%clk 0:02:44.3]} 8. g4 {[%clk 0:02:58.2]}
8... h5 {[%clk 0:02:34.6]} 9. g5 {[%clk 0:02:55.7]} 9... Ng8 {[%clk 0:02:27.6]}
10. Qd2 {[%clk 0:02:51.7]} 10... Nge7 {[%clk 0:02:23]} 11. h4 {[%clk 0:02:50.9]}
11... Rb8 {[%clk 0:02:21.5]} 12. a5 {[%clk 0:02:34.6]} 12... exd4 {[%clk
0:02:12.2]} 13. Nxd4 {[%clk 0:02:33.6]} 13... O-O {[%clk 0:02:12.3]} 14. Be2
{[%clk 0:02:30.8]} 14... Ne5 {[%clk 0:02:06.1]} 15. O-O-O {[%clk 0:02:27.9]}
15... N7c6 {[%clk 0:01:57.7]} 16. Nd5 {[%clk 0:02:21.1]} 16... Be6 {[%clk
0:01:55.4]} 17. f4 {[%clk 0:02:15.8]} 17... Bxd5 {[%clk 0:01:45.7]} 18. exd5
{[%clk 0:02:14.8]} 18... Nxd4 {[%clk 0:01:44.5]} 19. Bxd4 {[%clk 0:02:13.2]}
19... Nd7 {[%clk 0:01:44.5]} 20. Bxg7 {[%clk 0:02:11.2]} 20... Kxg7 {[%clk
0:01:38.3]} 21. Qc3+ {[%clk 0:02:11.6]} 21... Kg8 {[%clk 0:01:34.9]} 22. Bd3
{[%clk 0:02:09.5]} 22... Re8 {[%clk 0:01:34.6]} 23. f5 {[%clk 0:02:09]} 23...
Ne5 {[%clk 0:01:34.4]} 24. Rhf1 {[%clk 0:02:05.6]} 24... Qd7 {[%clk 0:01:31.3]}
25. fxg6 {[%clk 0:02:03.9]} 25... fxg6 {[%clk 0:01:31.5]} 26. Rf6 {[%clk
0:02:04.3]} 26... Rf8 {[%clk 0:01:31.9]} 27. Rdf1 {[%clk 0:02:03.5]} 27... Rxf6
{[%clk 0:01:31.1]} 28. Rxf6 {[%clk 0:02:03]} 28... Rf8 {[%clk 0:01:31.6]} 29.
Rxf8+ {[%clk 0:01:50.1]} 29... Kxf8 {[%clk 0:01:31.3]} 30. b3 {[%clk 0:01:49.5]}
30... Ke7 {[%clk 0:01:26.7]} 31. Kb2 {[%clk 0:01:49.1]} 31... Kd8 {[%clk
0:01:26.5]} 32. Qd4 {[%clk 0:01:47.3]} 32... Qg4 {[%clk 0:01:19.3]} 33. Qa7
{[%clk 0:01:41.5]} 33... Qxh4 {[%clk 0:01:11.3]} 34. Qxb7 {[%clk 0:01:37.2]}
34... Kd7 {[%clk 0:01:11.5]} 35. Qxa6 {[%clk 0:01:35.2]} 35... Qd4+ {[%clk
0:01:08.6]} 36. Ka2 {[%clk 0:01:31.8]} 36... Nxd3 {[%clk 0:01:07.9]} 37. cxd3
{[%clk 0:01:31.8]} 37... Qxd5 {[%clk 0:01:02.6]} 38. d4 {[%clk 0:01:20.7]} 38...
h4 {[%clk 0:01:00.1]} 39. Qe2 {[%clk 0:01:10.4]} 39... Qxa5+ {[%clk 0:00:58.6]}
40. Kb2 {[%clk 0:01:10.9]} 40... Qxg5 {[%clk 0:00:58]} 41. b4 {[%clk 0:01:06.8]}
41... h3 {[%clk 0:00:48.6]} 42. Kc3 {[%clk 0:01:01]} 42... Qg3+ {[%clk
0:00:45.2]} 43. Kc4 {[%clk 0:00:58.6]} 43... d5+ {[%clk 0:00:37.4]} 44. Kxd5
{[%clk 0:00:55.3]} 44... Qg2+ {[%clk 0:00:36.9]} 45. Qxg2 {[%clk 0:00:54.8]}
45... hxg2 {[%clk 0:00:36.7]} 0-1

[Event "*** Titled Tuesday Blitz"]
[Site "Chess.com"]
[Date "2020.05.26"]
[Round "1"]
[White "yobdc"]
[Black "RestartingChess"]
[Result "0-1"]
[WhiteElo "2009"]
[BlackElo "2479"]
[TimeControl "180+1"]
[EndTime "10:06:36 PDT"]
[Termination "RestartingChess won on time"]

1. c4 {[%clk 0:03:00.9]} 1... Nf6 {[%clk 0:02:59.1]} 2. Nc3 {[%clk 0:02:59.6]}
2... g6 {[%clk 0:02:58.1]} 3. e4 {[%clk 0:02:59.7]} 3... d6 {[%clk 0:02:57.8]}
4. d4 {[%clk 0:02:59.4]} 4... Bg7 {[%clk 0:02:57.7]} 5. Be2 {[%clk 0:02:59.2]}
5... O-O {[%clk 0:02:58]} 6. Bg5 {[%clk 0:02:59.2]} 6... h6 {[%clk 0:02:58]} 7.
Be3 {[%clk 0:02:59.2]} 7... e5 {[%clk 0:02:56.6]} 8. d5 {[%clk 0:02:59.4]} 8...
Nbd7 {[%clk 0:02:50.4]} 9. Qd2 {[%clk 0:02:58.2]} 9... Kh7 {[%clk 0:02:50.2]}
10. h4 {[%clk 0:02:57.6]} 10... Nc5 {[%clk 0:02:31.7]} 11. f3 {[%clk 0:02:57.2]}
11... a5 {[%clk 0:02:31.6]} 12. Nh3 {[%clk 0:02:43.8]} 12... Nh5 {[%clk
0:02:26.1]} 13. O-O-O {[%clk 0:02:12.7]} 13... f5 {[%clk 0:02:04.7]} 14. g4
{[%clk 0:02:04.2]} 14... Ng3 {[%clk 0:02:04.9]} 15. gxf5 {[%clk 0:01:59.7]}
15... gxf5 {[%clk 0:02:02.8]} 16. Rh2 {[%clk 0:01:29.9]} 16... f4 {[%clk
0:01:56.2]} 17. Bxc5 {[%clk 0:01:23.5]} 17... dxc5 {[%clk 0:01:53.6]} 18. Nf2
{[%clk 0:01:11.9]} 18... h5 {[%clk 0:01:50.6]} 19. Bf1 {[%clk 0:00:56.4]} 19...
Bf6 {[%clk 0:01:44.7]} 20. Bh3 {[%clk 0:00:48]} 20... Rg8 {[%clk 0:01:30.9]} 21.
Bxc8 {[%clk 0:00:46.1]} 21... Rxc8 {[%clk 0:01:30.4]} 22. d6 {[%clk 0:00:44.6]}
22... c6 {[%clk 0:01:12.9]} 23. d7 {[%clk 0:00:34.3]} 23... Rc7 {[%clk
0:01:12.3]} 24. Qd6 {[%clk 0:00:34.4]} 24... Rg7 {[%clk 0:01:09.3]} 25. Qxc5
{[%clk 0:00:16.4]} 25... Rcxd7 {[%clk 0:01:04.1]} 26. Rxd7 {[%clk 0:00:15.6]}
26... Rxd7 {[%clk 0:01:03.1]} 27. Nh3 {[%clk 0:00:13.8]} 27... Nf1 {[%clk
0:00:45.2]} 28. Rf2 {[%clk 0:00:08.9]} 28... Ne3 {[%clk 0:00:45.7]} 29. b3
{[%clk 0:00:04.6]} 29... Be7 {[%clk 0:00:40.2]} 30. Qa7 {[%clk 0:00:03.7]} 30...
Ba3+ {[%clk 0:00:39.9]} 0-1

[Event "*** Titled Tuesday Blitz"]
[Site "Chess.com"]
[Date "2020.05.26"]
[Round "1"]
[White "Flawless_Fighter"]
[Black "larisakalinina"]
[Result "1-0"]
[WhiteElo "2471"]
[BlackElo "1961"]
[TimeControl "180+1"]
[EndTime "10:06:38 PDT"]
[Termination "Flawless_Fighter won on time"]

1. e4 {[%clk 0:03:00.9]} 1... c5 {[%clk 0:02:58.8]} 2. Nf3 {[%clk 0:03:00.9]}
2... Nc6 {[%clk 0:02:59.1]} 3. Bb5 {[%clk 0:02:59.8]} 3... g6 {[%clk 0:02:58]}
4. Bxc6 {[%clk 0:03:00.1]} 4... dxc6 {[%clk 0:02:57.3]} 5. d3 {[%clk 0:03:00.6]}
5... Bg7 {[%clk 0:02:56.9]} 6. h3 {[%clk 0:03:01.3]} 6... e5 {[%clk 0:02:56.5]}
7. Nbd2 {[%clk 0:02:59.2]} 7... Qe7 {[%clk 0:02:56.7]} 8. a4 {[%clk 0:02:58.1]}
8... Nf6 {[%clk 0:02:55.3]} 9. Nc4 {[%clk 0:02:58]} 9... Nd7 {[%clk 0:02:54.6]}
10. a5 {[%clk 0:02:58]} 10... O-O {[%clk 0:02:49.9]} 11. O-O {[%clk 0:02:58.1]}
11... Rd8 {[%clk 0:02:44.8]} 12. Bd2 {[%clk 0:02:57.2]} 12... Nf8 {[%clk
0:02:40.7]} 13. Qb1 {[%clk 0:02:53.1]} 13... f6 {[%clk 0:02:28]} 14. b4 {[%clk
0:02:52.5]} 14... cxb4 {[%clk 0:02:13.6]} 15. Bxb4 {[%clk 0:02:52.6]} 15... c5
{[%clk 0:02:13.1]} 16. Bc3 {[%clk 0:02:53.2]} 16... Ne6 {[%clk 0:02:12.1]} 17.
Ne3 {[%clk 0:02:50.2]} 17... Nd4 {[%clk 0:02:08.3]} 18. Bxd4 {[%clk 0:02:36.4]}
18... cxd4 {[%clk 0:01:57.8]} 19. Nd5 {[%clk 0:02:34.9]} 19... Qf7 {[%clk
0:01:57.8]} 20. Nd2 {[%clk 0:02:25.8]} 20... Be6 {[%clk 0:01:56.5]} 21. Qb3
{[%clk 0:01:52]} 21... Bxd5 {[%clk 0:01:50]} 22. exd5 {[%clk 0:01:49.8]} 22...
Qxd5 {[%clk 0:01:50.1]} 23. Rfb1 {[%clk 0:01:47.1]} 23... Rab8 {[%clk
0:01:24.3]} 24. Ne4 {[%clk 0:01:38.9]} 24... Kf8 {[%clk 0:00:29.5]} 25. Qb4+
{[%clk 0:01:25.1]} 25... Kf7 {[%clk 0:00:25.9]} 26. Rb3 {[%clk 0:01:16.9]} 26...
f5 {[%clk 0:00:14.5]} 27. Ng5+ {[%clk 0:01:02.9]} 27... Kg8 {[%clk 0:00:11]} 28.
Qb5 {[%clk 0:01:03.4]} 28... Qxb5 {[%clk 0:00:09.2]} 29. Rxb5 {[%clk 0:01:04.3]}
29... Bf6 {[%clk 0:00:07.4]} 30. Ne6 {[%clk 0:01:03.5]} 30... Rd6 {[%clk
0:00:06.2]} 31. Nc5 {[%clk 0:01:01.5]} 31... b6 {[%clk 0:00:04]} 32. Na4 {[%clk
0:00:46]} 1-0

[Event "*** Titled Tuesday Blitz"]
[Site "Chess.com"]
[Date "2020.05.26"]
[Round "1"]
[White "Cocaino74"]
[Black "Zurability"]
[Result "0-1"]
[WhiteElo "2359"]
[BlackElo "2722"]
[TimeControl "180+1"]
[EndTime "10:06:39 PDT"]
[Termination "Zurability won by resignation"]

1. e4 {[%clk 0:02:59.3]} 1... c5 {[%clk 0:02:57.1]} 2. Nf3 {[%clk 0:02:59.4]}
2... d6 {[%clk 0:02:57.2]} 3. Bb5+ {[%clk 0:02:58.7]} 3... Nd7 {[%clk
0:02:56.6]} 4. O-O {[%clk 0:02:58.2]} 4... a6 {[%clk 0:02:54.4]} 5. Bd3 {[%clk
0:02:56.5]} 5... Ngf6 {[%clk 0:02:49.6]} 6. c3 {[%clk 0:02:56.6]} 6... b5 {[%clk
0:02:43]} 7. a4 {[%clk 0:02:55.3]} 7... c4 {[%clk 0:02:40.8]} 8. Bc2 {[%clk
0:02:52.4]} 8... Bb7 {[%clk 0:02:41.4]} 9. axb5 {[%clk 0:02:50.7]} 9... axb5
{[%clk 0:02:41.3]} 10. Rxa8 {[%clk 0:02:51.6]} 10... Qxa8 {[%clk 0:02:38.3]} 11.
Na3 {[%clk 0:02:52.1]} 11... Bxe4 {[%clk 0:02:31.1]} 12. Nxb5 {[%clk 0:02:25.1]}
12... Qb7 {[%clk 0:02:08.2]} 13. Bxe4 {[%clk 0:01:58]} 13... Nxe4 {[%clk
0:02:09.1]} 14. Qa4 {[%clk 0:01:37.8]} 14... d5 {[%clk 0:02:07.9]} 15. Qa5
{[%clk 0:00:41.8]} 15... e6 {[%clk 0:01:39]} 16. b3 {[%clk 0:00:25.1]} 16... Bc5
{[%clk 0:01:26.5]} 17. Ba3 {[%clk 0:00:17.5]} 17... O-O {[%clk 0:01:21.9]} 18.
Bxc5 {[%clk 0:00:11.7]} 18... Ndxc5 {[%clk 0:01:18.8]} 19. bxc4 {[%clk
0:00:12.1]} 19... dxc4 {[%clk 0:01:18.6]} 20. Qb4 {[%clk 0:00:10.1]} 20... Rb8
{[%clk 0:00:44.9]} 21. Rb1 {[%clk 0:00:06.7]} 21... Qd5 {[%clk 0:00:39.2]} 22.
Qa5 {[%clk 0:00:03.3]} 22... Nb3 {[%clk 0:00:35.5]} 23. Qa7 {[%clk 0:00:02]}
23... Qxb5 {[%clk 0:00:34.3]} 24. Nd4 {[%clk 0:00:02.2]} 24... Qb7 {[%clk
0:00:33.2]} 25. Qa4 {[%clk 0:00:01.4]} 25... Nexd2 {[%clk 0:00:31.9]} 26. Rb2
{[%clk 0:00:01.7]} 26... Ra8 {[%clk 0:00:27.9]} 27. Rxb3 {[%clk 0:00:01.7]} 0-1

[Event "*** Titled Tuesday Blitz"]
[Site "Chess.com"]
[Date "2020.05.26"]
[Round "1"]
[White "cioxminator"]
[Black "Sibelephant"]
[Result "0-1"]
[WhiteElo "2460"]
[BlackElo "3171"]
[TimeControl "180+1"]
[EndTime "10:06:41 PDT"]
[Termination "Sibelephant won on time"]

1. e4 {[%clk 0:03:00.9]} 1... c5 {[%clk 0:02:57.1]} 2. b4 {[%clk 0:02:58.6]}
2... cxb4 {[%clk 0:02:56.7]} 3. a3 {[%clk 0:02:58.9]} 3... b3 {[%clk 0:02:52.3]}
4. cxb3 {[%clk 0:02:33.3]} 4... d5 {[%clk 0:02:51.6]} 5. exd5 {[%clk 0:02:23]}
5... Nf6 {[%clk 0:02:51.4]} 6. Nc3 {[%clk 0:02:20.4]} 6... Nxd5 {[%clk
0:02:50.7]} 7. Bc4 {[%clk 0:02:01.8]} 7... Nxc3 {[%clk 0:02:43.4]} 8. dxc3
{[%clk 0:02:01.4]} 8... Qxd1+ {[%clk 0:02:42.2]} 9. Kxd1 {[%clk 0:02:01.5]} 9...
Nc6 {[%clk 0:02:34.1]} 10. Ke2 {[%clk 0:01:41.6]} 10... Bd7 {[%clk 0:02:04.1]}
11. Be3 {[%clk 0:01:37.9]} 11... Na5 {[%clk 0:02:01.1]} 12. Bd5 {[%clk
0:01:14.6]} 12... e6 {[%clk 0:02:01.3]} 13. Bf3 {[%clk 0:01:15]} 13... Nxb3
{[%clk 0:01:54.9]} 14. Rb1 {[%clk 0:01:13.7]} 14... Na5 {[%clk 0:01:54.5]} 15.
a4 {[%clk 0:01:03.4]} 15... Bxa4 {[%clk 0:01:31.2]} 16. Nh3 {[%clk 0:01:01.2]}
16... Be7 {[%clk 0:01:16.3]} 17. Nf4 {[%clk 0:00:55.5]} 17... Bb3 {[%clk
0:01:07.5]} 18. Rhc1 {[%clk 0:00:41]} 18... Ba2 {[%clk 0:01:01.7]} 19. Ra1
{[%clk 0:00:36.1]} 19... Bc4+ {[%clk 0:01:01.4]} 20. Ke1 {[%clk 0:00:35.6]}
20... Bd8 {[%clk 0:00:45.4]} 21. Rcb1 {[%clk 0:00:27.5]} 21... O-O {[%clk
0:00:44.8]} 22. Bxb7 {[%clk 0:00:24.8]} 22... Nxb7 {[%clk 0:00:43.4]} 23. Rxb7
{[%clk 0:00:25.3]} 23... a5 {[%clk 0:00:41.3]} 24. Bc5 {[%clk 0:00:20.9]} 24...
Re8 {[%clk 0:00:40]} 25. f3 {[%clk 0:00:17.8]} 25... Bf6 {[%clk 0:00:35.8]} 26.
Kd2 {[%clk 0:00:05.2]} 26... Red8+ {[%clk 0:00:35]} 27. Kc2 {[%clk 0:00:03.5]}
27... a4 {[%clk 0:00:35.5]} 28. Ba3 {[%clk 0:00:01.2]} 28... Bb3+ {[%clk
0:00:35.5]} 0-1

[Event "*** Titled Tuesday Blitz"]
[Site "Chess.com"]
[Date "2020.05.26"]
[Round "1"]
[White "annamaja"]
[Black "SerGo055"]
[Result "0-1"]
[WhiteElo "2227"]
[BlackElo "2578"]
[TimeControl "180+1"]
[EndTime "10:06:41 PDT"]
[Termination "SerGo055 won by checkmate"]

1. e4 {[%clk 0:03:00.9]} 1... d5 {[%clk 0:02:57.4]} 2. exd5 {[%clk 0:03:00.7]}
2... Qxd5 {[%clk 0:02:56.8]} 3. Nc3 {[%clk 0:03:01.4]} 3... Qd8 {[%clk
0:02:56.1]} 4. d4 {[%clk 0:03:00]} 4... Nf6 {[%clk 0:02:51.8]} 5. Nf3 {[%clk
0:02:55.6]} 5... c6 {[%clk 0:02:49.2]} 6. Bc4 {[%clk 0:02:50]} 6... Bf5 {[%clk
0:02:48.3]} 7. O-O {[%clk 0:02:49.2]} 7... e6 {[%clk 0:02:47.6]} 8. Re1 {[%clk
0:02:39.6]} 8... Be7 {[%clk 0:02:46.7]} 9. Ne5 {[%clk 0:02:39.9]} 9... O-O
{[%clk 0:02:46]} 10. a4 {[%clk 0:02:28.3]} 10... Nbd7 {[%clk 0:02:44.6]} 11. a5
{[%clk 0:02:17.7]} 11... Nxe5 {[%clk 0:02:29]} 12. dxe5 {[%clk 0:02:05.9]} 12...
Qxd1 {[%clk 0:02:26.7]} 13. Rxd1 {[%clk 0:02:06.8]} 13... Nd5 {[%clk 0:02:26.3]}
14. Nxd5 {[%clk 0:02:00.9]} 14... cxd5 {[%clk 0:02:26]} 15. Bd3 {[%clk
0:02:01.5]} 15... Bg6 {[%clk 0:02:25.5]} 16. Be3 {[%clk 0:01:57.3]} 16... Rfc8
{[%clk 0:02:12.3]} 17. Bxg6 {[%clk 0:01:44.6]} 17... hxg6 {[%clk 0:02:11.5]} 18.
c3 {[%clk 0:01:44.1]} 18... Bc5 {[%clk 0:02:06.5]} 19. Bd4 {[%clk 0:01:37.2]}
19... Rc6 {[%clk 0:01:32]} 20. g3 {[%clk 0:01:27.1]} 20... Rac8 {[%clk
0:01:31.5]} 21. Kg2 {[%clk 0:01:00.5]} 21... Kf8 {[%clk 0:01:29.6]} 22. Ra4
{[%clk 0:00:53.5]} 22... Ke7 {[%clk 0:01:29.3]} 23. Rda1 {[%clk 0:00:35.6]}
23... f6 {[%clk 0:01:16]} 24. Re1 {[%clk 0:00:21.2]} 24... f5 {[%clk 0:01:07.9]}
25. h4 {[%clk 0:00:15.7]} 25... Kd7 {[%clk 0:01:05.3]} 26. Rea1 {[%clk
0:00:09.9]} 26... a6 {[%clk 0:01:04.3]} 27. Bxc5 {[%clk 0:00:09.3]} 27... Rxc5
{[%clk 0:01:03.9]} 28. Rb4 {[%clk 0:00:10]} 28... R8c7 {[%clk 0:01:00.9]} 29.
Rb6 {[%clk 0:00:10.4]} 29... R5c6 {[%clk 0:01:00.6]} 30. Rxc6 {[%clk 0:00:10.4]}
30... Rxc6 {[%clk 0:01:01]} 31. Ra4 {[%clk 0:00:11.2]} 31... Rc5 {[%clk
0:00:59.9]} 32. Kf3 {[%clk 0:00:11.3]} 32... Kc6 {[%clk 0:00:58.5]} 33. Kf4
{[%clk 0:00:10.8]} 33... Kb5 {[%clk 0:00:38.2]} 34. Rb4+ {[%clk 0:00:09.8]}
34... Kxa5 {[%clk 0:00:38.5]} 35. Rxb7 {[%clk 0:00:10.4]} 35... Rc4+ {[%clk
0:00:39.1]} 36. Kg5 {[%clk 0:00:10.6]} 36... Rg4# {[%clk 0:00:39]} 0-1

[Event "*** Titled Tuesday Blitz"]
[Site "Chess.com"]
[Date "2020.05.26"]
[Round "1"]
[White "VladDobrov"]
[Black "Thipsay"]
[Result "0-1"]
[WhiteElo "2755"]
[BlackElo "2430"]
[TimeControl "180+1"]
[EndTime "10:06:46 PDT"]
[Termination "Thipsay won by resignation"]

1. d4 {[%clk 0:03:00.9]} 1... Nf6 {[%clk 0:02:59.6]} 2. c4 {[%clk 0:03:01.1]}
2... g6 {[%clk 0:02:59.7]} 3. Nc3 {[%clk 0:03:00.5]} 3... Bg7 {[%clk 0:03:00.1]}
4. e4 {[%clk 0:03:00.5]} 4... d6 {[%clk 0:03:00.7]} 5. Be2 {[%clk 0:03:00.7]}
5... O-O {[%clk 0:03:00.6]} 6. Nf3 {[%clk 0:03:01.4]} 6... e5 {[%clk 0:03:00.7]}
7. O-O {[%clk 0:03:02]} 7... Nc6 {[%clk 0:03:00.8]} 8. d5 {[%clk 0:03:02.4]}
8... Ne7 {[%clk 0:03:00.9]} 9. b4 {[%clk 0:03:03]} 9... a5 {[%clk 0:03:00.1]}
10. Ba3 {[%clk 0:03:02.5]} 10... axb4 {[%clk 0:02:58.3]} 11. Bxb4 {[%clk
0:03:03.4]} 11... Re8 {[%clk 0:02:58.6]} 12. c5 {[%clk 0:03:01.2]} 12... Nh5
{[%clk 0:02:49.1]} 13. g3 {[%clk 0:02:58]} 13... f5 {[%clk 0:02:48.3]} 14. Nd2
{[%clk 0:02:51.2]} 14... Nf6 {[%clk 0:02:46.9]} 15. cxd6 {[%clk 0:02:51.1]}
15... cxd6 {[%clk 0:02:45.3]} 16. Nc4 {[%clk 0:02:51.3]} 16... Ra6 {[%clk
0:02:42.2]} 17. f3 {[%clk 0:02:46.3]} 17... fxe4 {[%clk 0:02:40.1]} 18. fxe4
{[%clk 0:02:46.2]} 18... Bh3 {[%clk 0:02:38.4]} 19. Rf2 {[%clk 0:02:41.7]} 19...
Rf8 {[%clk 0:02:38.1]} 20. a4 {[%clk 0:02:25.3]} 20... Ne8 {[%clk 0:02:29.4]}
21. Rxf8+ {[%clk 0:02:23.6]} 21... Bxf8 {[%clk 0:02:28.8]} 22. Bg4 {[%clk
0:02:21.7]} 22... Bxg4 {[%clk 0:02:25.8]} 23. Qxg4 {[%clk 0:02:22.6]} 23... Ng7
{[%clk 0:02:16.1]} 24. Nb5 {[%clk 0:02:17.3]} 24... Nc8 {[%clk 0:02:15.5]} 25.
a5 {[%clk 0:02:07.9]} 25... Ra8 {[%clk 0:01:55.6]} 26. Rf1 {[%clk 0:01:56.7]}
26... Be7 {[%clk 0:01:36.1]} 27. Qf3 {[%clk 0:01:46.4]} 27... h5 {[%clk
0:01:23.7]} 28. Qf7+ {[%clk 0:01:30.3]} 28... Kh7 {[%clk 0:01:23.6]} 29. Bc3
{[%clk 0:01:10.9]} 29... Na7 {[%clk 0:01:07.4]} 30. Nxa7 {[%clk 0:00:54.9]}
30... Rxa7 {[%clk 0:01:06.8]} 31. Kg2 {[%clk 0:00:32.3]} 31... Ra8 {[%clk
0:01:04.4]} 32. Nxe5 {[%clk 0:00:30.1]} 32... dxe5 {[%clk 0:01:03.5]} 33. Bxe5
{[%clk 0:00:31]} 33... Qf8 {[%clk 0:01:01]} 34. d6 {[%clk 0:00:23.5]} 34... Bxd6
{[%clk 0:00:57.8]} 35. Bxg7 {[%clk 0:00:18]} 35... Qxg7 {[%clk 0:00:57]} 36. Qd5
{[%clk 0:00:18.1]} 36... Rf8 {[%clk 0:00:53.4]} 37. Qxd6 {[%clk 0:00:17.2]}
37... Qb2+ {[%clk 0:00:53.4]} 38. Kh3 {[%clk 0:00:15.5]} 38... Rxf1 {[%clk
0:00:53.7]} 39. e5 {[%clk 0:00:12.5]} 39... Rf7 {[%clk 0:00:51.8]} 40. e6 {[%clk
0:00:12.5]} 40... Rg7 {[%clk 0:00:51.6]} 41. e7 {[%clk 0:00:12.8]} 41... Qe2
{[%clk 0:00:51.3]} 0-1

[Event "*** Titled Tuesday Blitz"]
[Site "Chess.com"]
[Date "2020.05.26"]
[Round "1"]
[White "Irina_Barchuk"]
[Black "GelmanAlexander"]
[Result "0-1"]
[WhiteElo "2216"]
[BlackElo "2569"]
[TimeControl "180+1"]
[EndTime "10:06:48 PDT"]
[Termination "GelmanAlexander won by checkmate"]

1. e4 {[%clk 0:03:00.7]} 1... c5 {[%clk 0:02:56.2]} 2. Nf3 {[%clk 0:02:56.2]}
2... e6 {[%clk 0:02:56]} 3. d4 {[%clk 0:02:55.7]} 3... cxd4 {[%clk 0:02:51.8]}
4. Nxd4 {[%clk 0:02:56.6]} 4... d6 {[%clk 0:02:51.7]} 5. Nc3 {[%clk 0:02:54.3]}
5... a6 {[%clk 0:02:50.8]} 6. Be3 {[%clk 0:02:52.5]} 6... b5 {[%clk 0:02:49.9]}
7. Qd2 {[%clk 0:02:45.5]} 7... Bb7 {[%clk 0:02:48.3]} 8. f3 {[%clk 0:02:45.1]}
8... Nd7 {[%clk 0:02:46.5]} 9. O-O-O {[%clk 0:02:39.8]} 9... Ngf6 {[%clk
0:02:45.3]} 10. g4 {[%clk 0:02:39.4]} 10... Nb6 {[%clk 0:02:45.6]} 11. Qf2
{[%clk 0:02:29.5]} 11... Nfd7 {[%clk 0:02:43.7]} 12. g5 {[%clk 0:02:29.3]} 12...
Rc8 {[%clk 0:02:43.4]} 13. h4 {[%clk 0:02:28.8]} 13... Rxc3 {[%clk 0:02:43]} 14.
bxc3 {[%clk 0:02:28.3]} 14... d5 {[%clk 0:02:38.1]} 15. e5 {[%clk 0:02:19.8]}
15... Na4 {[%clk 0:02:21.7]} 16. f4 {[%clk 0:02:02.3]} 16... Qa5 {[%clk
0:02:09.9]} 17. Nb3 {[%clk 0:01:45.4]} 17... Ba3+ {[%clk 0:01:56.8]} 18. Kd2
{[%clk 0:01:09.1]} 18... Qxc3+ {[%clk 0:01:50.4]} 19. Ke2 {[%clk 0:01:08.6]}
19... Qxc2+ {[%clk 0:01:35.2]} 20. Rd2 {[%clk 0:01:08.5]} 20... Nc3+ {[%clk
0:01:25.7]} 21. Kf3 {[%clk 0:01:05.6]} 21... Qe4+ {[%clk 0:01:25.1]} 22. Kg3
{[%clk 0:01:01.1]} 22... Qxh1 {[%clk 0:01:20.3]} 23. Bg2 {[%clk 0:00:52.9]}
23... Ne4+ {[%clk 0:01:15.6]} 24. Bxe4 {[%clk 0:00:52.6]} 24... Qxe4 {[%clk
0:01:16.5]} 25. Nc5 {[%clk 0:00:44.8]} 25... Bxc5 {[%clk 0:01:10.8]} 26. Bxc5
{[%clk 0:00:45.7]} 26... Nxc5 {[%clk 0:01:03.3]} 27. Qxc5 {[%clk 0:00:46.6]}
27... d4 {[%clk 0:01:03]} 28. Qxd4 {[%clk 0:00:21.8]} 28... Qf3+ {[%clk
0:00:53.3]} 29. Kh2 {[%clk 0:00:21.3]} 29... O-O {[%clk 0:00:54]} 30. Rf2 {[%clk
0:00:15.1]} 30... Qh1+ {[%clk 0:00:51.4]} 31. Kg3 {[%clk 0:00:15.4]} 31... g6
{[%clk 0:00:49.6]} 32. Qb6 {[%clk 0:00:11.6]} 32... Rc8 {[%clk 0:00:47.6]} 33.
Qd6 {[%clk 0:00:10.2]} 33... Rc3+ {[%clk 0:00:44.9]} 34. Kg4 {[%clk 0:00:10.7]}
34... Qh3# {[%clk 0:00:44.1]} 0-1